bitfinex-derivatives/quotes_ETHF0:USTF0_20250903
["timestamp","ask_amount","ask_price","bid_price","bid_amount"]
[1756901355125,0.7207,4369.2,4369.1,0.0618]
[1756901355329,0.7207,4369.2,4369.1,0.1236]
[1756901355731,0.2987,4369.2,4369.1,0.1236]
[1756901355926,0.7207,4369.2,4369.1,0.1236]
[1756901356625,0.7207,4369.2,4369.1,0.0618]
[1756901357024,0.422,4369.2,4369.0,40.8]
[1756901357221,0.1207,4369.5,4368.4,0.1236]
[1756901357222,0.5427,4368.5,4368.4,0.1236]
[1756901357528,0.4194,4368.5,4368.4,0.1236]
[1756901357728,0.4194,4368.5,4368.4,40.9236]
[1756901359230,0.4194,4368.5,4368.0,0.0386]
[1756901359231,0.2987,4368.4,4368.0,0.0386]
[1756901359437,0.6319,4368.5,4368.4,0.1236]
[1756901359935,0.6319,4368.5,4368.4,40.9236]
[1756901360123,0.6319,4368.5,4368.4,0.1236]
[1756901360324,0.8414,4368.5,4368.4,0.0618]
[1756901360628,0.8414,4368.5,4368.4,0.1236]
[1756901361532,0.8414,4368.5,4368.4,0.88059433]
[1756901361736,0.422,4368.2,4368.1,41.68059433]
[1756901362030,0.8414,4368.0,4367.9,1.14470175]
[1756901362440,0.8414,4368.0,4366.5,0.0386]
[1756901362441,4.8414,4368.0,4366.5,0.0386]
[1756901362630,0.1207,4367.5,4367.4,0.0618]
[1756901362940,0.3332,4367.5,4367.4,0.1236]
[1756901363233,0.8414,4367.5,4367.4,1.00419433]
[1756901363437,0.1207,4368.0,4367.4,3.33286756]
[1756901363633,0.4194,4368.0,4367.9,3.33286756]
[1756901363838,0.1207,4368.5,4367.9,3.33286756]
[1756901364035,0.1207,4368.0,4367.9,0.1236]
[1756901364235,0.1207,4368.5,4367.9,0.1236]
[1756901364437,0.4194,4369.0,4368.9,0.1236]
[1756901364831,0.8414,4369.0,4368.9,0.1236]
[1756901365236,0.5427,4368.5,4368.4,0.0618]
[1756901365435,0.5427,4368.5,4368.2,0.236]
[1756901365636,0.5427,4368.5,4368.4,0.0618]
[1756901365938,0.8414,4368.5,4368.4,0.0618]
[1756901366333,0.1207,4369.5,4368.9,0.1236]
[1756901366642,0.4194,4369.5,4369.4,0.1236]
[1756901367143,0.1207,4370.0,4369.9,0.1236]
[1756901367328,0.6319,4370.0,4369.9,0.1236]
[1756901367829,0.4194,4370.0,4369.9,0.1236]
[1756901368732,0.6319,4370.0,4369.9,0.1236]
[1756901368938,0.8414,4370.0,4369.9,0.0618]
[1756901369132,0.8414,4370.0,4369.9,0.1236]
[1756901369334,0.2987,4370.8,4370.4,0.1622]
[1756901369533,0.1207,4371.0,4370.5,3.17066756]
[1756901369734,0.2125,4370.6,4370.5,3.29426756]
[1756901369942,0.2987,4370.6,4370.5,44.09426756]
[1756901371141,0.1207,4371.0,4370.8,0.1236]
[1756901371142,0.2987,4370.9,4370.8,0.1236]
[1756901371341,0.7207,4370.9,4370.8,0.0618]
[1756901371535,0.2987,4370.8,4370.5,40.8]
[1756901371737,0.5112,4370.6,4370.5,40.8]
[1756901372840,0.1207,4370.0,4369.7,0.237]
[1756901373142,0.1207,4370.0,4369.6,0.237]
[1756901373143,0.8414,4370.0,4369.6,0.237]
[1756901373341,0.5427,4370.0,4369.8,40.8]
[1756901373538,0.2987,4369.9,4369.8,40.8]
[1756901374441,0.1207,4370.0,4369.4,0.0618]
[1756901374442,0.6319,4369.5,4369.4,0.0618]
[1756901374740,0.8414,4369.5,4369.4,0.0618]
[1756901374947,0.8414,4369.5,4369.4,40.8]
[1756901376146,0.8414,4369.5,4368.9,0.237]
[1756901376147,0.1207,4369.0,4368.9,0.0618]
[1756901376342,0.6319,4369.0,4368.9,0.0618]
[1756901376537,0.6319,4369.0,4368.3,3.17066756]
[1756901376538,0.8414,4369.0,4368.3,3.17066756]
[1756901376740,0.8414,4369.0,4368.9,40.8]
[1756901376937,0.2987,4368.9,4367.8,0.237]
[1756901377434,0.2987,4368.9,4368.1,3.17066756]
[1756901377837,0.5112,4368.9,4368.8,0.0618]
[1756901378242,0.7207,4368.9,4368.8,0.0618]
[1756901378846,0.7207,4368.9,4368.2,0.237]
[1756901379143,0.7207,4368.9,4368.8,0.0618]
[1756901379840,0.7207,4368.9,4368.2,0.237]
[1756901380042,0.2987,4368.4,4368.3,40.8]
[1756901381944,0.1207,4368.5,4368.4,0.1625]
[1756901382145,0.4305,4368.5,4368.4,0.1625]
[1756901382346,0.4305,4368.5,4368.4,0.1238]
[1756901382849,0.4305,4369.0,4368.9,0.1238]
[1756901383048,0.8294,4369.0,4368.6,0.237]
[1756901383349,0.8294,4369.0,4368.9,0.0619]
[1756901384447,0.8294,4369.0,4368.5,0.237]
[1756901384749,0.7087,4370.4,4369.0,0.0387]
[1756901384946,0.3989,4370.4,4370.3,0.1238]
[1756901385448,0.7087,4370.4,4370.3,0.0619]
[1756901386047,0.7087,4370.4,4369.9,0.238]
[1756901386048,0.3098,4370.3,4369.2,0.0387]
[1756901386245,0.3098,4370.4,4369.0,3.66554108]
[1756901386550,0.3098,4370.4,4369.1,0.238]
[1756901386749,0.1268,4370.5,4369.3,40.8387]
[1756901387049,0.3098,4370.4,4369.3,40.8387]
[1756901387247,0.1268,4370.5,4369.3,40.8387]
[1756901387641,0.3098,4370.4,4369.4,0.238]
[1756901390852,0.7087,4369.4,4369.3,40.8]
[1756901391047,0.7087,4369.4,4368.3,0.0387]
[1756901391446,0.3989,4369.4,4368.4,40.8]
[1756901391646,0.3098,4369.3,4368.5,0.237]
[1756901391842,0.1268,4369.0,4368.5,0.237]
[1756901392047,0.5133,4368.9,4368.8,0.0619]
[1756901392855,0.5133,4368.9,4368.8,40.8619]
[1756901393449,0.3098,4368.9,4368.8,40.8619]
[1756901396859,0.3098,4368.9,4368.8,40.9006]
[1756901397247,0.1268,4369.0,4368.9,0.0619]
[1756901397452,0.1268,4369.0,4368.9,0.1625]
[1756901397651,0.4366,4369.0,4368.9,0.1625]
[1756901397857,0.4366,4369.0,4368.9,0.3995]
[1756901398158,0.4366,4369.0,4368.9,0.3608]
[1756901399155,0.6401,4369.0,4368.9,0.3608]
[1756901399359,0.8355,4369.0,4368.9,0.0619]
[1756901399557,0.6401,4369.0,4368.9,0.1238]
[1756901399957,0.8355,4369.0,4368.9,0.0619]
[1756901400161,0.3098,4368.9,4368.8,41.037]
[1756901401356,0.3098,4368.9,4368.8,40.8]
[1756901404856,0.1268,4369.0,4368.9,0.1625]
[1756901405265,0.4366,4369.0,4368.9,0.1625]
[1756901406060,0.4366,4369.0,4368.9,0.3995]
[1756901407365,0.4366,4369.5,4369.4,0.1625]
[1756901407565,0.1268,4370.0,4369.4,0.1625]
[1756901407566,0.1268,4370.0,4369.4,44.82534108]
[1756901407766,0.3098,4369.9,4369.4,44.82534108]
[1756901408265,0.1268,4370.0,4369.4,44.82534108]
[1756901408963,0.3098,4369.9,4369.4,44.82534108]
[1756901409165,0.1268,4370.0,4369.4,44.82534108]
[1756901409356,0.4366,4370.0,4369.9,0.1238]
[1756901409764,0.6401,4370.0,4369.9,0.1238]
[1756901410165,0.8355,4370.0,4369.9,0.1238]
[1756901412159,0.8355,4370.0,4369.9,0.0619]
[1756901413269,0.8355,4370.0,4369.9,0.1222]
[1756901414363,0.8355,4370.0,4369.9,0.0619]
[1756901416871,0.8355,4370.0,4369.7,0.236]
[1756901418167,0.4068,4369.5,4369.4,41.036]
[1756901425476,0.4068,4369.5,4369.4,41.0737]
[1756901429380,0.2896,4369.5,4369.4,44.73924108]
[1756901430073,0.4068,4369.5,4369.4,44.73924108]
[1756901430780,0.4068,4369.5,4369.4,44.70154108]
[1756901431080,0.4068,4369.5,4369.4,44.70054108]
[1756901431479,0.4068,4369.5,4369.4,44.73824108]
[1756901433079,0.4068,4369.5,4369.4,44.70054108]
[1756901434073,0.4068,4369.5,4369.4,44.73824108]
[1756901434679,0.2896,4369.5,4369.4,44.73824108]
[1756901435077,0.6248,4370.0,4369.9,0.1206]
[1756901435284,1.41763084,4370.0,4369.9,0.3556]
[1756901436880,1.41763084,4370.0,4369.9,0.2953]
[1756901437076,1.41763084,4370.0,4369.9,0.235]
[1756901437275,0.1172,4368.5,4368.3,2.14258812]
[1756901437482,0.2896,4368.4,4368.3,0.1206]
[1756901437678,0.4068,4368.5,4368.3,0.1206]
[1756901437982,0.2896,4369.4,4368.4,45.26392]
[1756901438181,0.5841025,4369.3,4369.2,0.1206]
[1756901438379,0.5841025,4369.3,4369.2,0.3933]
[1756901438678,0.8737025,4369.3,4369.2,0.3933]
[1756901439080,1.2910025,4369.3,4369.2,0.2953]
[1756901439269,0.7069,4369.3,4369.2,41.1556]
[1756901440578,0.7069,4369.3,4369.2,40.9206]
[1756901440778,0.7069,4369.3,4369.2,41.1556]
[1756901441280,0.498,4369.3,4369.2,41.1556]
[1756901442279,0.498,4369.3,4369.2,40.8]
[1756901442677,0.689,4369.2,4369.1,0.235]
[1756901442882,0.3998,4369.2,4368.9,0.235]
[1756901443080,0.8091,4369.0,4368.9,0.235]
[1756901443476,0.8091,4369.0,4368.9,0.2978]
[1756901443678,0.8091,4369.0,4368.9,0.3606]
[1756901445081,0.8091,4369.0,4368.6,0.235]
[1756901446479,0.8091,4369.0,4368.4,40.8]
[1756901446480,0.3998,4368.3,4368.2,0.2978]
[1756901446683,0.689,4368.3,4368.2,0.0628]
[1756901446877,0.3998,4368.3,4368.2,40.8]
[1756901447078,0.689,4368.3,4368.2,41.035]
[1756901447485,0.689,4368.3,4368.2,41.91555136]
[1756901449284,0.689,4368.3,4368.2,41.035]
[1756901449486,0.2892,4368.2,4367.4,5.2042]
[1756901449685,0.8091,4368.0,4367.9,0.94335136]
[1756901449885,0.8091,4368.0,4367.9,42.04115136]
[1756901450089,0.6081,4368.0,4367.9,42.04115136]
[1756901453394,0.4093,4368.0,4367.9,42.08035136]
[1756901455091,0.4093,4368.0,4367.9,42.04115136]
[1756901455299,0.4093,4368.0,4367.9,41.1606]
[1756901455490,0.4093,4368.0,4367.9,42.04115136]
[1756901459992,0.4093,4368.0,4367.9,41.74335136]
[1756901460194,0.88055136,4368.4,4367.9,0.3988]
[1756901460390,0.2892,4368.4,4368.3,1.00615136]
[1756901460694,0.689,4368.4,4368.3,40.9256]
[1756901460896,0.1201,4368.0,4367.9,0.88055136]
[1756901461097,0.2892,4367.9,4367.6,0.88055136]
[1756901461395,0.689,4367.7,4367.5,0.235]
[1756901461590,0.689,4367.7,4367.6,0.88055136]
[1756901461897,0.689,4367.7,4367.6,41.68055136]
[1756901463595,0.689,4367.7,4367.6,40.8]
[1756901464794,0.8091,4367.0,4366.9,0.1256]
[1756901465100,0.8091,4367.0,4366.9,1.24115136]
[1756901465300,0.8091,4367.0,4366.9,41.80615136]
[1756901466094,0.8091,4367.0,4366.9,40.9256]
[1756901466300,0.8091,4367.0,4366.9,41.80615136]
[1756901466499,0.8091,4367.0,4366.9,40.9256]
[1756901466699,0.8091,4367.0,4366.9,41.80615136]
[1756901466900,0.8091,4367.0,4366.9,40.8628]
[1756901467104,0.8091,4367.0,4366.9,0.0628]
[1756901467894,0.5199,4367.0,4365.5,0.0392]
[1756901468103,0.1988,4366.3,4366.2,0.94335136]
[1756901468396,0.488,4366.3,4366.2,1.00615136]
[1756901468807,0.689,4366.3,4366.2,1.00615136]
[1756901469399,0.2892,4366.3,4366.2,1.04535136]
[1756901470007,0.2892,4366.3,4366.2,41.84535136]
[1756901470400,0.2892,4366.3,4366.2,40.9648]
[1756901470601,0.2892,4366.3,4366.2,41.80615136]
[1756901470803,0.2892,4366.3,4366.2,40.8]
[1756901471003,0.2892,4366.3,4366.2,41.71955136]
[1756901471506,0.2892,4366.3,4366.2,41.68055136]
[1756901472508,0.2892,4366.3,4366.2,41.71935136]
[1756901472708,0.2892,4366.3,4366.2,40.8]
[1756901472909,0.2892,4366.3,4366.2,41.68055136]
[1756901473214,0.6819,4366.3,4365.6,0.0388]
[1756901473401,0.6819,4366.3,4365.7,0.234]
[1756901473608,0.6055,4366.0,4365.9,0.1242]
[1756901473807,0.6055,4366.0,4365.9,40.9242]
[1756901474212,0.4099,4366.0,4365.9,40.9242]
[1756901474607,0.4099,4366.0,4365.9,40.8621]
[1756901475409,0.4099,4366.0,4365.9,40.8]
[1756901475611,0.6865,4365.8,4365.7,1.00475136]
[1756901476215,0.6865,4365.8,4365.7,41.80475136]
[1756901476413,0.6865,4365.8,4365.7,0.94265136]
[1756901477316,0.6865,4365.8,4365.7,0.0621]
[1756901479617,0.5088,4365.5,4365.4,0.1242]
[1756901479916,0.5088,4365.5,4365.4,1.00475136]
[1756901480117,0.5088,4365.5,4364.9,0.2728]
[1756901480118,0.6055,4365.0,4364.9,1.00475136]
[1756901480507,0.6055,4365.0,4364.9,41.80475136]
[1756901481214,0.4099,4365.0,4364.9,41.84355136]
[1756901481718,0.2938,4365.0,4364.9,41.84355136]
[1756901482415,0.4099,4365.0,4364.9,41.84355136]
[1756901483719,0.4099,4365.0,4364.9,42.07755136]
[1756901485016,0.4099,4365.0,4364.9,42.03875136]
[1756901486016,0.4099,4365.0,4364.9,42.07755136]
[1756901488416,0.4099,4365.0,4364.9,41.197]
[1756901488622,0.4099,4365.0,4364.9,41.1582]
[1756901488818,0.2938,4364.9,4364.5,0.234]
[1756901489017,0.1161,4365.5,4365.4,0.1242]
[1756901489211,0.4099,4365.5,4365.4,1.00475136]
[1756901489421,0.1201,4366.5,4365.4,1.00475136]
[1756901489422,0.1201,4366.5,4366.0,0.0388]
[1756901489720,0.1201,4366.5,4366.4,1.04355136]
[1756901489926,0.4139,4366.5,4366.4,42.07855136]
[1756901490225,0.1161,4367.0,4366.8,0.1242]
[1756901490422,0.6865,4366.9,4366.8,0.94265136]
[1756901490617,0.2938,4366.8,4366.5,1.11555136]
[1756901490816,0.6865,4366.8,4366.7,0.0621]
[1756901491122,0.6865,4366.8,4366.7,0.1242]
[1756901491319,0.2938,4366.8,4366.7,0.163]
[1756901491724,0.2938,4366.8,4366.7,0.1242]
[1756901492122,0.1161,4367.5,4366.7,0.1242]
[1756901492123,0.4894,4367.4,4367.3,0.1242]
[1756901492320,0.4894,4367.4,4367.3,1.00475136]
[1756901492825,0.4894,4367.4,4367.3,40.9242]
[1756901493126,0.4894,4367.4,4367.3,41.80475136]
[1756901493326,0.4894,4367.4,4367.3,40.9242]
[1756901493517,0.4894,4367.4,4367.3,41.80475136]
[1756901494828,0.4894,4367.4,4367.3,42.03975136]
[1756901495922,0.2938,4367.4,4367.3,42.03975136]
[1756901496317,0.2938,4367.4,4367.3,42.07855136]
[1756901496928,0.2938,4367.4,4367.3,42.03975136]
[1756901497129,0.2938,4367.4,4367.3,40.9242]
[1756901497624,0.177,4368.9,4367.3,40.963]
[1756901497829,0.2938,4368.4,4367.9,1.04355136]
[1756901498023,0.6865,4368.4,4368.3,0.94265136]
[1756901498628,0.6865,4368.4,4368.3,1.00475136]
[1756901498830,0.4894,4368.4,4368.3,1.00475136]
[1756901499834,0.6865,4368.4,4368.3,0.1242]
[1756901500026,0.6865,4368.4,4368.3,0.94265136]
[1756901500227,4.62162,4368.4,4367.3,40.8]
[1756901500534,0.8026,4367.5,4367.4,0.3592]
[1756901500732,0.8026,4367.5,4367.4,1.23975136]
[1756901502035,0.8266,4367.5,4367.4,0.0618]
[1756901502234,0.5088,4367.5,4367.3,41.68055136]
[1756901502436,0.3178,4367.4,4367.3,41.68055136]
[1756901503335,0.3178,4367.4,4367.3,41.71925136]
[1756901503835,0.3178,4367.4,4367.3,41.68055136]
[1756901505537,0.3178,4367.4,4367.3,40.8]
[1756901510027,0.3178,4367.4,4367.3,40.8387]
[1756901510831,0.1161,4367.5,4367.4,0.1236]
[1756901511032,0.4339,4367.5,4367.4,0.1623]
[1756901511838,0.4339,4367.5,4367.4,0.1236]
[1756901512038,0.8399,4367.5,4367.4,0.1236]
[1756901514541,0.8399,4367.5,4367.4,0.3586]
[1756901515140,0.8399,4367.5,4367.4,1.43456825]
[1756901516445,0.6353,4367.5,4367.4,1.43456825]
[1756901518542,0.4339,4367.5,4367.4,1.43456825]
[1756901518841,0.4339,4368.0,4367.9,0.1623]
[1756901519031,0.8399,4368.0,4367.9,1.13776825]
[1756901519343,0.7238,4367.9,4367.4,1.07596825]
[1756901519544,0.843,4367.5,4367.4,1.13776825]
[1756901519737,0.843,4367.5,4367.4,1.37176825]
[1756901519941,0.843,4367.5,4367.4,1.43356825]
[1756901520140,0.1161,4368.0,4367.4,1.47226825]
[1756901520345,0.7238,4367.9,4367.8,1.07596825]
[1756901520642,0.7238,4367.9,4367.8,1.13776825]
[1756901521441,0.7238,4367.9,4367.8,1.19956825]
[1756901523444,0.7238,4367.9,4367.8,1.13776825]
[1756901524146,0.7238,4367.9,4367.7,1.07596825]
[1756901524343,0.3178,4367.8,4367.7,1.07596825]
[1756901524843,0.7238,4367.8,4367.7,1.07596825]
[1756901525237,0.7238,4367.8,4367.3,40.8]
[1756901525238,0.7238,4367.4,4367.3,40.8]
[1756901525941,1.30617459,4367.4,4366.7,1.07596825]
[1756901526144,0.7238,4366.8,4366.7,1.13776825]
[1756901526646,0.7238,4366.8,4366.7,41.93776825]
[1756901526843,0.3178,4366.7,4366.2,1.07596825]
[1756901527041,0.406,4366.8,4366.2,1.07596825]
[1756901527042,0.5192,4366.3,4366.2,1.19956825]
[1756901528551,0.3178,4366.3,4366.2,1.19956825]
[1756901528744,0.5192,4366.3,4366.2,1.19956825]
[1756901528939,0.7238,4366.3,4366.2,1.19956825]
[1756901529141,0.7238,4366.3,4366.2,0.0618]
[1756901529645,0.3178,4366.2,4366.1,42.10996825]
[1756901532456,0.3178,4366.2,4366.1,41.87596825]
[1756901535357,0.3178,4366.2,4366.1,40.8]
[1756901542161,0.3022,4365.9,4364.9,0.039]
[1756901542453,0.3022,4365.9,4365.8,1.23956825]
[1756901542849,0.3022,4366.2,4365.9,0.039]
[1756901543051,0.3161,4367.0,4366.9,0.1246]
[1756901543360,0.1192,4367.5,4366.9,1.20056825]
[1756901543655,0.3144,4367.0,4366.9,0.1246]
[1756901543855,0.6166,4367.0,4366.9,40.9246]
[1756901544358,0.6166,4367.0,4366.9,0.1246]
[1756901544552,0.8185,4367.0,4366.9,0.1246]
[1756901544753,0.8185,4367.0,4366.9,40.9246]
[1756901544958,0.6166,4367.0,4366.9,42.00056825]
[1756901545859,0.6166,4367.0,4366.9,40.8623]
[1756901546263,0.6166,4367.0,4366.9,0.1246]
[1756901546859,0.6166,4367.0,4366.9,40.9246]
[1756901549064,0.4197,4367.0,4366.9,40.9246]
[1756901550660,0.1175,4368.0,4367.3,0.1246]
[1756901550853,0.4991,4367.8,4367.7,0.1246]
[1756901551058,1.28215104,4367.8,4367.7,0.1246]
[1756901551652,1.28215104,4367.8,4367.7,0.0623]
[1756901552266,0.3144,4367.5,4367.4,0.0623]
[1756901552457,0.6166,4367.5,4367.4,0.1246]
[1756901552656,0.8185,4367.5,4367.4,0.1246]
[1756901553270,0.8185,4367.5,4367.2,1.07596825]
[1756901553478,0.8185,4367.5,4366.5,0.235]
[1756901553479,0.8185,4367.0,4366.5,0.235]
[1756901553678,0.8185,4367.0,4366.4,1.43556825]
[1756901553679,0.1175,4366.5,4366.4,1.43556825]
[1756901553865,0.6166,4366.5,4366.4,0.3596]
[1756901554070,0.6166,4366.5,4366.4,0.0623]
[1756901554071,0.8185,4366.5,4366.4,0.0623]
[1756901554573,0.8185,4366.5,4366.4,40.8623]
[1756901556277,1.40075926,4366.5,4366.4,40.8623]
[1756901558667,0.8185,4366.5,4366.4,40.8623]
[1756901558977,0.8185,4366.5,4366.4,0.1246]
[1756901559570,0.8185,4366.5,4366.4,0.0623]
[1756901559774,0.5163,4366.5,4366.2,40.8]
[1756901559974,0.701,4366.3,4366.2,40.8]
[1756901562880,0.3022,4366.3,4366.2,40.8]
[1756901563181,0.3022,4366.3,4366.2,40.839]
[1756901564175,0.1175,4366.5,4366.4,0.1246]
[1756901564377,0.29,4366.5,4366.4,1.23956825]
[1756901564582,1.19742372,4366.5,4366.4,0.1246]
[1756901565080,0.99682372,4366.5,4366.4,0.1636]
[1756901565281,1.19742372,4366.5,4366.4,0.1246]
[1756901565478,0.58182372,4366.5,4366.4,0.1636]
[1756901565676,0.1175,4367.0,4366.9,0.1246]
[1756901565881,1.10396965,4367.0,4366.9,0.1246]
[1756901566281,1.39396965,4367.0,4366.9,0.1246]
[1756901570188,1.39396965,4367.0,4366.8,0.88119332]
[1756901570389,1.27646965,4366.9,4366.8,0.88119332]
[1756901571888,1.27646965,4366.9,4366.8,0.94349332]
[1756901572088,1.27646965,4366.9,4366.8,1.00579332]
[1756901576288,1.27596773,4366.9,4366.8,1.00579332]
[1756901576781,0.4046,4366.6,4366.5,0.94349332]
[1756901576978,0.4906,4366.6,4366.5,1.00579332]
[1756901577590,0.4906,4366.6,4366.5,0.1246]
[1756901577788,0.4906,4366.6,4366.5,1.00579332]
[1756901579190,0.4906,4366.6,4366.5,41.80579332]
[1756901581387,0.4906,4366.6,4366.0,5.165]
[1756901581388,0.6946,4366.1,4366.0,5.165]
[1756901581890,0.6946,4366.1,4366.0,45.965]
[1756901582780,0.6946,4366.1,4366.0,40.8]
[1756901583879,1.27632194,4366.1,4366.0,40.8]
[1756901584090,0.6946,4366.1,4366.0,40.8]
[1756901584493,1.27625082,4366.1,4366.0,40.8]
[1756901585793,1.27621838,4366.1,4366.0,40.8]
[1756901585993,0.6946,4366.1,4366.0,40.8]
[1756901586389,1.27619044,4366.1,4366.0,40.8]
[1756901586586,0.6946,4366.1,4366.0,40.8]
[1756901586792,0.4906,4366.1,4366.0,40.839]
[1756901587095,0.4906,4366.1,4366.0,40.8]
[1756901587495,0.415,4366.5,4366.4,0.1636]
[1756901587695,0.9965662,4366.5,4366.4,1.04479332]
[1756901587993,1.1111662,4366.5,4366.1,40.8]
[1756901588187,0.4046,4366.2,4366.1,40.8]
[1756901588496,0.6946,4366.2,4366.1,40.8]
[1756901588681,0.98617007,4366.2,4366.0,0.88119332]
[1756901588888,0.6946,4366.1,4366.0,0.94349332]
[1756901589291,0.6946,4366.1,4366.0,40.8623]
[1756901590495,1.27611383,4366.1,4366.0,40.8623]
[1756901591098,1.27611383,4366.1,4366.0,41.74349332]
[1756901594101,1.27611383,4366.1,4366.0,40.8623]
[1756901594902,1.27611383,4366.1,4366.0,0.0623]
[1756901595895,0.4159,4366.0,4365.9,0.062]
[1756901596099,0.825,4366.0,4365.9,0.062]
[1756901599399,0.2977,4365.9,4365.7,41.68119332]
[1756901599594,0.2128,4365.8,4365.7,41.68119332]
[1756901599787,0.5105,4365.8,4365.7,41.68119332]
[1756901601299,0.7068,4365.8,4365.7,0.062]
[1756901601901,0.7068,4365.8,4365.7,0.124]
[1756901602100,0.5105,4365.8,4365.7,0.124]
[1756901602302,0.7068,4365.7,4365.6,0.062]
[1756901603302,0.7068,4365.7,4365.6,0.124]
[1756901606404,0.7068,4365.7,4365.6,1.00519332]
[1756901606704,0.7068,4365.7,4365.6,0.94319332]
[1756901606903,0.2128,4365.2,4365.1,0.358]
[1756901607214,0.5105,4365.2,4365.1,1.00519332]
[1756901607503,0.7068,4365.2,4365.1,1.00519332]
[1756901612311,0.7068,4365.2,4365.1,1.02467818]
[1756901614304,0.7068,4365.2,4365.1,1.04416304]
[1756901614708,0.1182,4365.5,4365.1,2.03535636]
[1756901614709,0.2977,4365.4,4365.1,2.03535636]
[1756901614915,0.5105,4365.9,4365.8,0.124]
[1756901615105,0.7068,4365.9,4365.8,1.00519332]
[1756901615310,0.7068,4365.9,4365.8,1.04416304]
[1756901615609,0.7068,4365.9,4365.8,1.0636479]
[1756901616006,0.2977,4365.9,4365.8,1.1024479]
[1756901616815,0.2977,4365.9,4365.8,41.9024479]
[1756901619704,0.125,4366.5,4366.3,0.124]
[1756901619908,1.0908453,4366.4,4366.3,0.124]
[1756901620114,1.0908453,4366.4,4366.3,1.00519332]
[1756901620310,0.8780453,4366.4,4366.3,1.04399332]
[1756901620515,0.2977,4366.4,4366.3,1.1024479]
[1756901620809,0.2977,4366.4,4366.3,1.0636479]
[1756901620810,0.5105,4366.4,4366.3,1.0636479]
[1756901621212,0.5105,4366.4,4366.3,0.18245458]
[1756901621416,0.5105,4366.4,4366.3,1.0636479]
[1756901623217,0.7028,4366.4,4366.3,1.0636479]
[1756901623409,0.7028,4366.4,4366.3,1.0016479]
[1756901624323,0.7028,4366.4,4366.3,1.0634479]
[1756901625618,0.7028,4366.4,4366.3,1.0016479]
[1756901626010,0.7028,4366.4,4366.3,1.0634479]
[1756901626618,0.5105,4366.4,4366.3,1.0634479]
[1756901628421,0.7028,4366.4,4366.3,0.12045458]
[1756901629016,0.7028,4366.4,4366.3,0.05845458]
[1756901634021,0.7028,4366.4,4366.3,0.18205458]
[1756901640028,0.7028,4366.4,4366.3,0.12025458]
[1756901640328,0.7028,4366.4,4366.3,0.18205458]
[1756901641636,0.7028,4366.4,4366.3,0.05845458]
[1756901643132,1.28310038,4366.4,4366.3,0.05845458]
[1756901646739,1.28310038,4366.4,4366.3,1.13506484]
[1756901646938,1.28310038,4366.4,4366.3,1.19686484]
[1756901647141,1.28310038,4366.4,4366.3,1.26196069]
[1756901647837,0.3008,4366.8,4366.4,0.0386]
[1756901648046,0.3008,4366.8,4366.7,1.23881026]
[1756901648240,0.3008,4366.8,4366.7,42.03881026]
[1756901649237,0.3008,4366.8,4366.7,42.00016069]
[1756901652937,0.3008,4366.8,4366.7,42.03856069]
[1756901653842,0.3008,4366.8,4366.7,42.00016069]
[1756901656339,0.3008,4366.8,4366.7,42.03856069]
[1756901656545,0.1182,4367.5,4366.9,0.1228]
[1756901656840,0.5062,4367.5,4367.4,1.19941026]
[1756901657136,0.5062,4367.5,4367.4,42.06156069]
[1756901657342,0.8067,4367.5,4367.4,40.98495043]
[1756901658841,0.4187,4367.5,4367.4,40.98495043]
[1756901659045,0.1182,4368.0,4367.9,0.1612]
[1756901659242,0.5089,4368.0,4367.9,0.12355043]
[1756901659439,0.8094,4368.0,4367.9,0.12355043]
[1756901659744,0.8094,4368.0,4367.9,1.26156069]
[1756901662547,0.3005,4368.4,4367.9,1.32296069]
[1756901662741,0.4942,4368.4,4368.3,1.19941026]
[1756901663040,0.5089,4368.0,4367.9,0.35755043]
[1756901663240,0.8094,4368.0,4367.9,41.15755043]
[1756901663540,0.8094,4367.5,4367.4,0.234]
[1756901663741,0.8094,4367.5,4367.2,0.234]
[1756901664141,0.8094,4367.5,4367.4,40.8]
[1756901666846,0.8094,4367.5,4367.4,41.87661026]
[1756901668848,0.6151,4367.5,4367.4,41.87661026]
[1756901669047,0.4214,4367.5,4367.4,42.11061026]
[1756901669248,0.3005,4367.5,4367.4,42.14901026]
[1756901669445,0.1209,4368.0,4367.9,0.1612]
[1756901669751,0.1209,4368.0,4367.4,42.11061026]
[1756901669752,0.1209,4367.5,4367.4,40.8]
[1756901669943,0.4214,4367.5,4367.4,40.8]
[1756901670150,0.4214,4367.5,4367.4,41.87661026]
[1756901671446,0.4214,4367.5,4367.4,40.8]
[1756901673753,0.4214,4367.5,4367.4,40.8384]
[1756901673953,0.4214,4368.0,4367.9,0.1612]
[1756901674155,0.4214,4368.0,4367.9,1.19941026]
[1756901674354,1.39214509,4368.0,4367.9,1.19941026]
[1756901675560,1.09164509,4368.0,4367.6,0.234]
[1756901675763,0.6885,4367.7,4367.6,1.43341026]
[1756901675962,0.4942,4367.7,4367.6,1.43341026]
[1756901676862,0.6885,4367.7,4367.6,1.19941026]
[1756901678169,0.3005,4367.7,4367.6,1.23781026]
[1756901678466,0.4942,4367.7,4367.6,1.19941026]
[1756901678667,0.6885,4367.7,4367.6,1.19941026]
[1756901679168,0.4942,4367.7,4367.6,1.19941026]
[1756901680268,0.3005,4367.7,4367.6,1.23781026]
[1756901680863,0.4942,4367.7,4367.6,1.19941026]
[1756901681062,0.1209,4367.5,4367.4,40.8]
[1756901681266,0.4214,4367.5,4367.4,42.11061026]
[1756901686572,0.4214,4367.5,4367.4,41.87661026]
[1756901686970,0.4214,4367.5,4367.4,40.8]